Cogmind - Beta 11.1 @@@ ROGUE MODE // 2022.09.23 @ 23:36:17 Player: DuckBoy Result: Destroyed by G-34 Mercenary with Small Laser Performance ------------- Evolutions (1) 500 Regions Visited (5) 1000 Robots Destroyed (54) 270 Value Destroyed (1879) 1879 Prototype IDs (0) 0 Alien Tech Used (0) 0 Bonus (789) 789 TOTAL SCORE: 4438 Bonus ------- High Alert Combat Kills 136 Entered Garrisons 200 Used RIF Installer 500 Friendly Fire -47 Cogmind --------- Core Integrity 0/400 Matter 300/300 Energy 54/265 System Corruption 0% Temperature Cool (6) Movement Hovering (220) Ox2 Location -9/Garrison Parts ------- > --- POWER (1) -------- Improved Ion Engine > --- PROPULSION (2) --- Combat Airjet > --- UTILITY (3) ------ Heat Sink Heat Sink Large Storage Unit > --- WEAPON (3) ------- Small Laser Light EM Pulse Cannon Hammer > --- INVENTORY (15) --- Light Ion Engine Light Ion Engine Light Ion Engine Relay Coupler [NC] (26) Relay Coupler [NC] (24) Light EM Pulse Cannon Light EM Pulse Cannon Light EM Pulse Cannon Peak State ------------ > --- POWER ------------ Improved Ion Engine > --- PROPULSION ------- Combat Airjet > --- UTILITY ---------- Heat Sink Heat Sink Large Storage Unit > --- WEAPON ----------- Small Laser Light EM Pulse Cannon Light EM Pulse Cannon > --- INVENTORY -------- Light Ion Engine Light Ion Engine Light Ion Engine Relay Coupler [NC] Relay Coupler [NC] Light EM Pulse Cannon Light EM Pulse Cannon Hammer [Rating: 16] Favorites ----------- Power Ion Engine Engine Ion Engine Propulsion Wheel Treads Light Treads Wheel Wheel Hover Unit Combat Airjet Utility Large Storage Unit Device Improved Heat Sink Storage Large Storage Unit Protection Medium Armor Plating Weapon Medium Laser Energy Gun Medium Laser Energy Cannon Light EM Pulse Cannon Ballistic Gun Light Assault Rifle Launcher Grenade Launcher Impact Weapon Hammer Build | -11 -10 -10 -9 -9 -9 ------- Run | Scr Mat Min Mat Sto Gar Slots Evolved 2 | . . . 2 . . Power . | . . . . . . Propulsion . | . . . . . . Utility 1 | . . . 1 . . Weapon 1 | . . . 1 . . Parts Attached 43 | 6 5 . 6 . 26 Power 6 | 1 . . 1 . 4 Engine 6 | 1 . . 1 . 4 Core . | . . . . . . Reactor . | . . . . . . Propulsion 6 | 2 . . 1 . 3 Treads 2 | . . . . . 2 Leg . | . . . . . . Wheel 3 | 2 . . 1 . . Hover 1 | . . . . . 1 Flight . | . . . . . . Utility 13 | 1 2 . 2 . 8 Device 3 | . . . 1 . 2 Storage 2 | 1 1 . . . . Processor . | . . . . . . Hackware . | . . . . . . Protection 8 | . 1 . 1 . 6 Artifact . | . . . . . . Weapon 18 | 2 3 . 2 . 11 Energy Gun 8 | 1 . . 1 . 6 Energy Cannon 2 | . . . . . 2 Ballistic Gun 2 | 1 1 . . . . Ballistic Cannon . | . . . . . . Launcher 5 | . 2 . 1 . 2 Special Weapon . | . . . . . . Impact Weapon 1 | . . . . . 1 Slashing Weapon . | . . . . . . Piercing Weapon . | . . . . . . Special Melee Weapon . | . . . . . . Unidentified Prototypes . | . . . . . . Parts Lost 23 | . . . 5 . 18 Power 3 | . . . 1 . 2 Propulsion 5 | . . . 1 . 4 Utility 7 | . . . 1 . 6 Weapon 8 | . . . 2 . 6 Highest Loss Streak 7 | . . . 4 . 7 To Critical Strikes . | . . . . . . Average Slot Usage (%) 94 | . 98 100 93 88 87 Engine 12 | . 14 14 11 11 10 Treads 4 | . . . . . 12 Wheel 18 | . 28 28 19 22 4 Device 5 | . . . 9 11 10 Storage 12 | . 14 14 11 11 11 Protection 10 | . 12 14 11 11 6 Energy Gun 17 | . 14 14 20 11 22 Energy Cannon 2 | . . . . . 7 Ballistic Gun 1 | . 7 . . . . Launcher 7 | . 6 14 11 11 2 Naked Turns . | . . . . . . Heaviest Build 40 | 13 37 37 40 38 39 Greatest Support 40 | 26 26 26 26 20 40 Greatest Overweight (x) 3 | 2 1 1 3 1 3 Average Overweight (x) . | . . 1 1 1 . Largest Inventory Capacity 15 | 8 15 15 15 15 15 Average Capacity 14 | 6 12 15 15 15 15 Most Carried 15 | 4 15 15 15 12 13 Average Carried 11 | 1 10 14 12 12 10 Final Capacity 15 | 8 15 15 15 15 15 Final Carried 15 | 4 15 15 12 12 8 Class Distribution -------------------- 74% | Mutant 13% | Scavenger-Tank 9% | Scavenger-Mutant Dominant Class ---------------- Mutant | -10/Materials Mutant | -10/Mines Mutant | -9/Materials Mutant | -9/Storage Scavenger-Tank | -9/Garrison Resources | -11 -10 -10 -9 -9 -9 ----------- Run | Scr Mat Min Mat Sto Gar Matter Collected 917 | 245 146 70 90 . 366 Remotely . | . . . . . . Salvage Created 1299 | . 161 199 323 . 616 Parts 76 | . 17 7 28 . 24 Haulers Intercepted 1 | . 1 . . . . Recyclers Shooed 1 | . . . 1 . . Parts Field Recycled . | . . . . . . Retrieved Matter . | . . . . . . Parts Self-Destructed . | . . . . . . Prevented . | . . . . . . Kills | -11 -10 -10 -9 -9 -9 ------- Run | Scr Mat Min Mat Sto Gar Combat Hostiles Destroyed 44 | . 5 5 14 . 20 Guns 21 | . 2 1 5 . 13 Cannons 3 | . . . . . 3 AOE 20 | . 3 4 9 . 4 Classes Destroyed 12 | . 6 3 1 . 2 Worker 2 | . 1 . 1 . . Tunneler 2 | . . 1 1 . . Hauler 1 | . 1 . . . . Recycler 1 | . . 1 . . . Operator 1 | . 1 . . . . Watcher 4 | . 2 . 2 . . Swarmer 17 | . 3 . 8 . 6 Grunt 20 | . 2 4 3 . 11 Brawler 1 | . . . . . 1 Duelist 1 | . . . . . 1 Sentry 4 | . . . 3 . 1 Assembled 1 | . . 1 . . . Best Kill Streak 17 | . 3 3 17 . 7 Combat Bots Only 13 | . 3 2 13 . 7 Max Kills in Single Turn 5 | . 3 2 5 . 2 Gunslinging 1 | . . . . . 1 Exploded 5 | . 3 2 5 . 2 Melee . | . . . . . . Uniques/NPCs Destroyed . | . . . . . . Combat | -11 -10 -10 -9 -9 -9 -------- Run | Scr Mat Min Mat Sto Gar Damage Taken 2470 | . 167 167 399 . 1737 Core 462 | . 39 20 44 . 359 Absorbed by Shields 6 | . . . . . 6 Core Remaining (%) 88 | 100 . 76 . . . Volleys Fired 121 | . 18 9 24 . 70 Largest 3 | . 2 2 3 . 3 Hottest 161 | . 80 80 130 . 161 Shots Fired 263 | . 31 15 49 . 168 Gun 215 | . 24 8 44 . 139 Cannon 21 | . . . . . 21 Launcher 27 | . 7 7 5 . 8 Special . | . . . . . . Kinetic 11 | . 11 . . . . Thermal 204 | . 13 8 44 . 139 Explosive 27 | . 7 7 5 . 8 Electromagnetic 21 | . . . . . 21 Robot Hit Streak 12 | . 7 8 12 . 11 Robot Miss Streak 6 | . 2 2 2 . 6 Penetration Max . | . . . . . . Secondary Targets 3 | . . . 1 . 2 Max Gunslinging Chain 1 | . . . 1 . 1 Shots Hit Robots 163 | . 20 10 35 . 98 Core Hits 93 | . 14 13 26 . 40 Critical Kills 1 | . 1 . . . . Critical Parts Destroyed . | . . . . . . Critical Strikes 4 | . 1 . 3 . . Burn 3 | . . . 3 . . Destroy 1 | . 1 . . . . Melee Attacks 1 | . . . . . 1 Impact 1 | . . . . . 1 Slashing . | . . . . . . Piercing . | . . . . . . Sneak Attacks . | . . . . . . Combat Hostiles . | . . . . . . Follow-up Attacks . | . . . . . . Damage Inflicted 3500 | . 470 451 928 . 1651 Guns 1711 | . 175 75 425 . 1036 Cannons 189 | . . . . . 189 Explosions 1600 | . 295 376 503 . 426 Melee . | . . . . . . Ramming . | . . . . . . Kinetic 49 | . 49 . . . . Thermal 1662 | . 126 75 425 . 1036 Explosive 1600 | . 295 376 503 . 426 Electromagnetic 189 | . . . . . 189 Impact . | . . . . . . Slashing . | . . . . . . Piercing . | . . . . . . Highest Corruption . | . . . . . . Average Corruption . | . . . . . . Corruption Purged . | . . . . . . Corruption Blocked . | . . . . . . Overload Shots . | . . . . . . Overflow Damage 3 | . 2 . 1 . . Projectiles . | . . . . . . Explosions 3 | . 2 . 1 . . Melee . | . . . . . . Knockbacks . | . . . . . . Impact . | . . . . . . Kinetic . | . . . . . . Secondary . | . . . . . . Self-Inflicted Damage 225 | . 7 49 31 . 138 Shots 10 | . 1 2 1 . 6 Rammed . | . . . . . . Targets Rammed . | . . . . . . Kicked . | . . . . . . Crushed . | . . . . . . Highest Temperature 460 | . 91 144 91 . 460 Average Temperature 119 | . 36 64 54 . 158 Received Heat Transfer 813 | . 24 66 138 . 585 Effects 10 | . . . . . 10 Shutdowns 1 | . . . . . 1 Energy Bleed 2 | . . . . . 2 Interference 5 | . . . . . 5 Matter Decay 2 | . . . . . 2 Siege Activations . | . . . . . . Robots Corrupted . | . . . . . . Combat Hostiles . | . . . . . . Parts Fried . | . . . . . . Impact Corruptions . | . . . . . . Robots Melted . | . . . . . . Combat Hostiles . | . . . . . . Parts Melted 7 | . 1 . 2 . 4 Heat Transferred 4573 | . 370 222 1480 . 2501 Parts Sabotaged . | . . . . . . Parts Stolen . | . . . . . . Parts Stripped . | . . . . . . Power Chain Reactions . | . . . . . . Missiles Intercepted . | . . . . . . Alert | -11 -10 -10 -9 -9 -9 ------- Run | Scr Mat Min Mat Sto Gar Peak Influence 888 | . 289 214 441 197 888 Initial 182 | . . 72 . 182 128 Average 323 | . 175 120 270 185 608 Maximum Alert Level 3 | . 1 1 2 . 3 Low Security (%) 43 | 100 50 73 38 100 10 Level 1 20 | . 49 26 11 . 5 Level 2 20 | . . . 50 . 43 Level 3 15 | . . . . . 40 Level 4 . | . . . . . . Level 5 . | . . . . . . High Security . | . . . . . . Max Security . | . . . . . . Squads Dispatched 2 | . 1 . 1 . . Investigation . | . . . . . . Extermination . | . . . . . . Reinforcement 2 | . 1 . 1 . . Assault . | . . . . . . Garrison . | . . . . . . Intercept . | . . . . . . Searches Triggered . | . . . . . . Construction Impeded . | . . . . . . Haulers Reinforced . | . . . . . . Active Scanning Responses . | . . . . . . Cargo Convoy Interrupts . | . . . . . . Stealth | -11 -10 -10 -9 -9 -9 --------- Run | Scr Mat Min Mat Sto Gar Distress Signals 3 | . . . 3 . . Communications Jammed . | . . . . . . Distress Signals . | . . . . . . Times Spotted 63 | . 8 8 21 3 23 Peak Tracking Total 9 | . 3 4 9 3 5 Tactical Retreats 3 | . . . 1 . 2 Traps | -11 -10 -10 -9 -9 -9 ------- Run | Scr Mat Min Mat Sto Gar Traps Triggered 9 | . 2 . . . 7 Indirectly . | . . . . . . Trap Hack Attempts . | . . . . . . Triggered . | . . . . . . Disarmed . | . . . . . . Reprogrammed . | . . . . . . Reused . | . . . . . . Traps Extracted . | . . . . . . Installed . | . . . . . . Triggered . | . . . . . . Machines | -11 -10 -10 -9 -9 -9 ---------- Run | Scr Mat Min Mat Sto Gar Machines Disabled 4 | . 1 . . . 3 Max in Single Turn 1 | . 1 . . . 1 Garrison Relay 3 | . . . . . 3 Machines Sabotaged . | . . . . . . Garrisons Compromised . | . . . . . . Overloaded Fab Kills . | . . . . . . Hacking | -11 -10 -10 -9 -9 -9 --------- Run | Scr Mat Min Mat Sto Gar Machines Accessed 6 | . 3 . 2 1 . Terminals 4 | . 2 . 2 . . Fabricators . | . . . . . . Repair Stations . | . . . . . . Recycling Units 1 | . 1 . . . . Scanalyzers . | . . . . . . Garrison Access 1 | . . . . 1 . Total Hacks 20 | . 9 . 7 4 . Successful 11 | . 6 . 4 1 . Failed 9 | . 3 . 3 3 . Catastrophic . | . . . . . . Database Lockouts . | . . . . . . Manual 14 | . 9 . 5 . . Terminals 14 | . 7 . 7 . . Fabricators . | . . . . . . Repair Stations . | . . . . . . Recycling Units 2 | . 2 . . . . Scanalyzers . | . . . . . . Garrison Access 4 | . . . . 4 . Terminal Hacks 5 | . 2 . 3 . . Recycling Unit Index 1 | . 1 . . . . Alert Level 1 | . . . 1 . . Maintenance Status 1 | . . . 1 . . Hauler Manifests 1 | . . . 1 . . Zone Layout 1 | . 1 . . . . Fabricator Hacks . | . . . . . . Repair Station Hacks . | . . . . . . Recycling Unit Hacks . | . . . . . . Scanalyzer . | . . . . . . Garrison Access Hacks 1 | . . . . 1 . Unlock Access 1 | . . . . 1 . Unauthorized Hacks 5 | . 4 . 1 . . Terminals 3 | . 2 . 1 . . Botnet 3 | . 2 . 1 . . Fabricators . | . . . . . . Repair Stations . | . . . . . . Recycling Units 2 | . 2 . . . . Reject 1 | . 1 . . . . Mask 1 | . 1 . . . . Scanalyzers . | . . . . . . Garrison Access . | . . . . . . Data Cores Recovered . | . . . . . . Used . | . . . . . . Hacking Detections 5 | . 2 . 2 1 . Full Trace Events 1 | . . . . 1 . Feedback Events . | . . . . . . Feedback Blocked . | . . . . . . Robot Schematics Acquired . | . . . . . . Robots Built . | . . . . . . Authchips . | . . . . . . Time . | . . . . . . Total Robot Build Rating . | . . . . . . Part Schematics Acquired . | . . . . . . Parts Built . | . . . . . . Authchips . | . . . . . . Time . | . . . . . . Total Part Build Rating . | . . . . . . Parts Repaired . | . . . . . . Time . | . . . . . . Parts Recycled . | . . . . . . Recycled Matter . | . . . . . . Retrieved Matter . | . . . . . . Retrieved Components . | . . . . . . Parts Scanalyzed . | . . . . . . Part Schematics Acquired . | . . . . . . Parts Damaged . | . . . . . . Bothacking | -11 -10 -10 -9 -9 -9 ------------ Run | Scr Mat Min Mat Sto Gar Used RIF Installer 1 | . . . . . 1 Robots Hacked . | . . . . . . Non-combat . | . . . . . . Combat . | . . . . . . Robot Hacks Applied . | . . . . . . Relay Couplers Released 13 | . . . . . 13 Machine Destruction 13 | . . . . . 13 Fabnet Peak Effective % . | . . . . . . Robots Rewired . | . . . . . . Allies Hacked . | . . . . . . Hacks Repelled . | . . . . . . Allies | -11 -10 -10 -9 -9 -9 -------- Run | Scr Mat Min Mat Sto Gar Total Allies . | . . . . . . Largest Group . | . . . . . . Highest-Rated Group . | . . . . . . Highest-Rated Ally . | . . . . . . Total Orders . | . . . . . . Ally Attacks . | . . . . . . Total Damage . | . . . . . . Kills . | . . . . . . Allies Corrupted . | . . . . . . Allies Melted . | . . . . . . Intel | -11 -10 -10 -9 -9 -9 ------- Run | Scr Mat Min Mat Sto Gar Robot Analysis Total . | . . . . . . Derelict Logs Recovered 2 | . . 2 . . . Drone Launches . | . . . . . . Drone Recoveries . | . . . . . . Exploration | -11 -10 -10 -9 -9 -9 ------------- Run | Scr Mat Min Mat Sto Gar Turns Passed 2953 | 79 553 961 220 28 1112 Spaces Moved 1951 | 62 463 801 130 29 466 Core 24 | 24 . . . . . Treads 340 | . . . . . 340 Legs . | . . . . . . Wheels 1586 | 38 463 801 130 29 125 Hover 1 | . . . . . 1 Flight . | . . . . . . Fastest Speed 50 | 50 90 105 95 95 95 Average Speed 119 | 106 98 105 100 95 172 Slowest Speed 290 | 150 105 105 125 95 290 Overloaded Moves . | . . . . . . Propulsion Burnouts . | . . . . . . Robots Hopped . | . . . . . . Cave-ins Triggered . | . . . . . . Exploration Rate (%) 43 | 4 47 99 13 13 84 Regions Visited 5 Branch Regions 2 Pre-discovered Areas 1 | . . 1 . . . Known Exits Taken 1 | . . . . 1 . Unknown Exits Taken 4 | 1 1 1 1 . . Scrap Searched 1 | . . 1 . . . Spaces Dug 19 | . 19 . . . . Terrain Destroyed 156 | . 52 55 28 . 21 Melee . | . . . . . . Projectile . | . . . . . . AOE 156 | . 52 55 28 . 21 Terrain Rammed . | . . . . . . Walls Destroyed . | . . . . . . Machines Disabled . | . . . . . . Actions | -11 -10 -10 -9 -9 -9 --------- Run | Scr Mat Min Mat Sto Gar Total 2334 | 71 528 907 172 29 627 Wait 156 | . 26 94 11 . 25 Move 1947 | 61 462 800 129 29 466 Hop . | . . . . . . Pick Up 29 | 4 14 2 2 . 7 Fast Attach 12 | 6 . . 1 . 5 Attach 20 | . 1 . 5 . 14 Detach . | . . . . . . Swap 11 | . 4 . . . 7 Drop 5 | . 3 2 . . . Fire 121 | . 18 9 24 . 70 Melee 1 | . . . . . 1 Ram . | . . . . . . Kick . | . . . . . . Crush . | . . . . . . Escape Stasis 32 | . . . . . 32 Rewire . | . . . . . . Trap . | . . . . . . Miscellaneous . | . . . . . . Route ------- -11/Scrapyard -10/Materials (discovered 2 exits: *Mat / [*Min]) -10/Mines (discovered 2 exits: *Mat x2) -9/Materials -9/Storage -9/Garrison (discovered 3 exits: [*Mat x3]) History --------- Turn | Location | Event 14 | -11/Scrapyard | Discovered new exit (range 16) 80 | -11/Scrapyard | Entered Materials 187 | -10/Materials | Discovered new exit (range 9) 271 | -10/Materials | Discovered new exit (range 16) 315 | -10/Materials | Build established: Mutant 633 | -10/Materials | Entered Mines 750 | -10/Mines | Assembled infested the area 755 | -10/Mines | Assisted by a Guerilla fighting off Assembled 783 | -10/Mines | Discovered new exit (range 10) 804 | -10/Mines | Learned location of Storage (-9) 908 | -10/Mines | Learned Materials stockpile data 996 | -10/Mines | Found a hidden stash of uninstalled traps 1133 | -10/Mines | Discovered new exit (range 12) 1208 | -10/Mines | Learned Materials non-interactive machine intel 1594 | -10/Mines | Entered Materials 1594 | -9/Materials | Evolved 2 slots: Utility x1, Weapon x1 1596 | -9/Materials | Loaded intel: 40 non-interactive machine locations 1702 | -9/Materials | Lost 4 parts (1p1n1u1w) 1710 | -9/Materials | Discovered new exit (range 11) 1713 | -9/Materials | Destroyed 13 combat bots 1814 | -9/Materials | Entered Storage 1842 | -9/Storage | Identified exit to Garrison 1842 | -9/Storage | Entered Garrison 1906 | -9/Garrison | Triggered checkpoint 1955 | -9/Garrison | Garrison Relay disabled 2079 | -9/Garrison | Core integrity fell below 50% 2111 | -9/Garrison | Destroyed 7 combat bots 2114 | -9/Garrison | Triggered checkpoint 2117 | -9/Garrison | Lost 7 parts (1p2n2u2w) 2190 | -9/Garrison | Discovered new exit (range 10) 2262 | -9/Garrison | Triggered checkpoint 2324 | -9/Garrison | Garrison Relay disabled 2334 | -9/Garrison | Build established: Scavenger-Tank 2388 | -9/Garrison | Triggered checkpoint 2392 | -9/Garrison | Triggered checkpoint 2444 | -9/Garrison | Core integrity fell below 20% 2471 | -9/Garrison | Lost 5 parts (1p1n2u1w) 2551 | -9/Garrison | Discovered new exit (range 8) 2580 | -9/Garrison | Triggered checkpoint 2625 | -9/Garrison | Lost 3 parts (1u2w) 2632 | -9/Garrison | Garrison Relay disabled 2714 | -9/Garrison | Installed Relay Interface Framework 2867 | -9/Garrison | Discovered new exit (range 10) 2898 | -9/Garrison | Triggered checkpoint 2954 | -9/Garrison | Destroyed by G-34 Mercenary with Small Laser Last Messages --------------- 02714_ Relay Interface Framework installed. 02791_ Acquired 29 matter. 02822_ Triggered Stasis Trap. 02822_ A bubble of rippling energy engulfs the area. 02822_ Field strength at 70. 02824_ Field strength at 40. 02825_ Field strength at 10. 02826_ Stasis field depleted. 02826_ Triggered Stasis Trap. 02826_ A bubble of rippling energy engulfs the area. 02826_ Field strength at 70. 02829_ Field strength at 40. 02830_ Field strength at 10. 02831_ Stasis field depleted. 02867_ EXIT=FOUND 02898_ Beams of light sweep through the air. An alarm sounds. 02916_ G-34 Mercenary destroyed. 02927_ Lgt. Treads destroyed. 02930_ Acquired 25 matter. 02945_ Acquired 10 matter. Map ----- +----------------------------------------------------+ | ??????????????# ################ #######????????? | | ??????????????# #??????### | | ??????????????# #??????# | | ??????????????############## ######## ###????# | | ???????????????????????????# #?????## #????# | | ???????????????????????????# #?# ### #????# | | ???????????????????????????# #?# #????# | | ???????????????????????????# #?# #### ###????#^ | | ???????????????????????????# #????# # ####### | | ???????????????????????????# #????# # # %## | | ???????????????????????????# #????### # ## | | ???????????????????????????# ####### % | | ???????????????????????????# % | | ???????????????????????????# ^ | | ???????????????????????????########## ## | | ??????????????????????????????????### ## ## | | ??????????????????????????????????# % | | ??????????????????????????????????# | | ??????????????????????????????????# | | ??????????????????????????????????# = | | ??????????????????????????????????### ## ## % | | ????????????????????????????????????# ## ## | | ????????????????????????????????????# | | ????????????????????????????????????# | | ????????????????############????????# | | ??????????# g @ #????????## ## ## | | ????????????????#### ###g#?????????# ## ## | | ???????????????????# ????# #?????????# ######## | | ?????????????????????????# #?????????# #??????# | | ?????????????????????????# #?????????# #??????# | | ?????????????????????????# #?????????# #??????# | | ?????????????????????????# #?????????# #??????# | | ??????????????????????#### ########### #??????# | | ??????????????????????# #??????# | | ??????????????????????# #??????# | | ??????????????????????# ################??????### | | ??????????????????????# #???????????????????????? | | ??????????????????????# #???????????????????????? | | ??????????????????????# #???????????????????????? | | ??????????????????????# #???????????????????????? | | ??????????????????????# #???????????????????????? | | ??????????????????????# #???????????????????????? | | ??????????????????????# #???????????????????????? | | ?????????????????????? #???????????????????????? | | ??????????????????????< #???????????????????????? | | ?????????????????????? ????????????????????????? | | ??????????????????????###????????????????????????? | | ?????????????????????????????????????????????????? | | ?????????????????????????????????????????????????? | | ?????????????????????????????????????????????????? | +----------------------------------------------------+ Best States ------------- Heat Dissipation 48 Energy Generation 12 Energy Capacity 265 Matter Stores 300 Matter Capacity 300 Sight Range 16 Terrain Scan Density 10 Armor Coverage 375 Evasion (%) 42 Recoil Reduction 2 Item Schematics ----------------- None Robot Schematics ------------------ None Fabricated ------------ Nothing Alien Tech Used ----------------- None Achievements -------------- None Challenges ------------ None Game ------ Seed DisruptorAerolevInitializer Manual? 0 Play Time 00:26:49 Cumulative 133.9 hours Start 2022.09.23 @ 23:11:04 End 2022.09.23 @ 23:36:17 Sessions 1 Manual Loads 0 Difficulty Rogue Special Mode None Game No. 113 Rogue 110 Adventurer 3 Explorer 0 Win Type - Total 1 Types 1/0/0/0/0/0/0/0/0 Lore% 54 Gallery% 53 Achievement% 48 Wizard Run 0 Options --------- ASCII 0 Keyboard 0 Movement Numpad Keybinds 0 Fullscreen 1 Font 18/SmallcapsGlow Map View 76x50 Tactical HUD 1 Map Filters NONE Filters NONE Steam 1 RUN: 1e064653-edc8-4825-b10a-6ac0b03846d8